bitfinex/quotes_BTCUSD_20251012
["timestamp","ask_amount","ask_price","bid_price","bid_amount"]
[1760274608554,0.17855548,112010.0,112000.0,0.17857142]
[1760274608793,0.18766751,112020.0,112000.0,0.26242142]
[1760274609112,0.17855548,112010.0,112000.0,0.22423142]
[1760274609317,0.00058081,112010.0,112000.0,0.22423142]
[1760274609677,0.00058081,112010.0,112000.0,0.26242142]
[1760274610035,0.17913629,112010.0,112000.0,0.26242142]
[1760274610298,0.17913629,112010.0,112000.0,0.08385]
[1760274611513,0.17913629,112010.0,112000.0,0.26242142]
[1760274612052,0.00058081,112010.0,112000.0,0.26242142]
[1760274613283,0.17913629,112010.0,112000.0,0.26242142]
[1760274621246,0.17913629,112010.0,111990.0,0.14734608]
[1760274621445,0.1964494,112000.0,111990.0,0.08413656]
[1760274621646,0.17857142,112000.0,111990.0,0.08413656]
[1760274622411,0.17857142,112000.0,111990.0,0.12232656]
[1760274623406,0.17857142,112000.0,111990.0,0.05781656]
[1760274623407,0.21434219,112000.0,111990.0,0.05781656]
[1760274623608,0.17857142,112000.0,111990.0,0.03847656]
[1760274625057,0.17857142,112000.0,111990.0,0.08413656]
[1760274625465,0.17857142,112000.0,111990.0,0.12232656]
[1760274626553,0.17857142,112000.0,111990.0,0.08413656]
[1760274627809,0.17857142,112000.0,111990.0,0.12232656]
[1760274628437,0.17857142,112000.0,111990.0,0.30091393]
[1760274631381,0.17913629,112010.0,112000.0,0.17857142]
[1760274631589,0.17913629,112010.0,112000.0,0.26048142]
[1760274637082,0.00058081,112010.0,112000.0,0.38016284]
[1760274637291,0.00058081,112010.0,112000.0,0.72016284]
[1760274638645,0.00058081,112010.0,112000.0,0.72116284]
[1760274639042,0.00058081,112010.0,112000.0,0.72016284]
[1760274639280,0.00058081,112010.0,112000.0,0.72116284]
[1760274639457,0.00058081,112010.0,112000.0,0.72216284]
[1760274639600,0.00058081,112010.0,112000.0,0.72116284]
[1760274639952,0.00058081,112010.0,112000.0,0.72216284]
[1760274640946,0.00058081,112010.0,112000.0,0.72736284]
[1760274642172,0.00058081,112010.0,112000.0,1.12736284]
[1760274643252,1e-08,112010.0,112000.0,1.15236283]
[1760274643489,1e-08,112020.0,112010.0,0.57370737]
[1760274643691,0.08074661,112070.0,112050.0,0.17849174]
[1760274643692,0.17847636,112060.0,112050.0,0.17849174]
[1760274643919,0.00050163,112060.0,112050.0,0.35020126]
[1760274644290,0.00340415,112060.0,112050.0,0.35020126]
[1760274644866,0.18187996,112060.0,112050.0,0.35020126]
[1760274645285,0.00340415,112060.0,112050.0,0.35020126]
[1760274646541,0.00340415,112060.0,112050.0,0.35120126]
[1760274647055,0.00340415,112060.0,112050.0,0.38235316]
[1760274648688,0.00340415,112060.0,112050.0,0.40735315]
[1760274649289,0.00340415,112060.0,112050.0,0.38235316]
[1760274649905,0.00340415,112060.0,112050.0,0.20386142]
[1760274650141,0.00340415,112060.0,112050.0,0.38235316]
[1760274654168,0.00340415,112060.0,112050.0,0.41987316]
[1760274662623,0.00340415,112060.0,112050.0,0.68857316]
[1760274667379,0.01170076,112060.0,112050.0,0.68857316]
[1760274667596,0.00340415,112060.0,112050.0,0.68857316]
[1760274668023,0.18736691,112080.0,112060.0,0.44375707]
[1760274668243,0.19581404,112080.0,112070.0,0.15222516]
[1760274668505,0.19581404,112080.0,112070.0,0.21439516]
[1760274668720,0.19581404,112080.0,112070.0,0.23894142]
[1760274668975,0.19697458,112080.0,112070.0,0.23894142]
[1760274670518,0.19697458,112080.0,112070.0,0.41740131]
[1760274670731,0.18805163,112080.0,112070.0,0.41740131]
[1760274671671,0.18805163,112080.0,112070.0,0.23894142]
[1760274671866,0.18805163,112080.0,112070.0,0.41740131]
[1760274672109,0.18805163,112080.0,112070.0,0.23894142]
[1760274674061,0.14763689,112090.0,112070.0,0.23894142]
[1760274674295,0.17844396,112080.0,112070.0,0.50423727]
[1760274674787,0.17844396,112080.0,112070.0,0.50286216]
[1760274676227,0.17844396,112080.0,112070.0,0.68132205]
[1760274676477,0.17844396,112080.0,112070.0,0.50286216]
[1760274677234,0.17844396,112080.0,112070.0,0.68132205]
[1760274678760,0.14763689,112090.0,112080.0,0.20859586]
[1760274678761,0.01910203,112090.0,112080.0,0.20859586]
[1760274678995,0.19778752,112100.0,112090.0,0.17842804]
[1760274679205,0.21448973,112100.0,112090.0,0.04452]
[1760274679421,0.17868549,112100.0,112090.0,0.09363377]
[1760274683413,0.17868549,112100.0,112090.0,0.18316329]
[1760274683634,0.17868549,112100.0,112090.0,0.17126952]
[1760274683856,0.17868549,112100.0,112090.0,0.13404952]
[1760274685166,0.17868549,112100.0,112090.0,0.17126952]
[1760274685540,0.17984572,112100.0,112090.0,0.17126952]
[1760274686121,0.17984572,112100.0,112090.0,0.34969756]
[1760274686646,0.17984572,112100.0,112090.0,0.17126952]
[1760274687056,0.17984572,112100.0,112090.0,0.34969756]
[1760274687669,0.17984572,112100.0,112090.0,0.38721756]
[1760274688490,0.17984572,112100.0,112090.0,0.20878952]
[1760274688665,0.17984572,112100.0,112090.0,0.38721756]
[1760274688870,0.17984572,112100.0,112090.0,0.20878952]
[1760274690156,0.17984572,112100.0,112090.0,0.17156952]
[1760274690751,0.17984572,112100.0,112090.0,0.12704952]
[1760274690950,0.17984572,112100.0,112090.0,0.17070952]
[1760274692111,0.17984572,112100.0,112090.0,0.20887952]
[1760274692339,0.17984572,112100.0,112090.0,0.17070952]
[1760274692513,0.17984572,112100.0,112090.0,0.20887952]
[1760274693144,0.00136023,112100.0,112090.0,0.38730756]
[1760274693349,0.00136023,112100.0,112090.0,0.41745946]
[1760274694664,0.00136023,112100.0,112090.0,0.41845946]
[1760274696288,0.00136023,112100.0,112090.0,0.41945946]
[1760274706036,0.00136023,112100.0,112090.0,0.44445945]
[1760274706633,0.00136023,112100.0,112090.0,0.78445945]
[1760274709602,0.00136023,112100.0,112090.0,0.78803487]
[1760274709808,0.00136023,112100.0,112090.0,1.18803487]
[1760274710014,0.00136023,112100.0,112090.0,1.18703487]
[1760274710218,0.00136023,112100.0,112090.0,1.18603487]
[1760274710383,0.00136023,112100.0,112090.0,1.19003487]
[1760274710972,0.00136023,112100.0,112090.0,1.18803487]
[1760274711278,0.00136023,112100.0,112090.0,1.19003487]
[1760274713191,0.0002,112110.0,112100.0,0.57356402]
[1760274713447,0.0002,112110.0,112100.0,0.71740354]
[1760274713575,0.0002,112110.0,112100.0,0.74292354]
[1760274713775,0.00078002,112110.0,112100.0,0.74292354]
[1760274714594,0.00078002,112110.0,112100.0,0.74392354]
[1760274715399,0.00078002,112110.0,112100.0,0.74492354]
[1760274716904,0.00078002,112110.0,112100.0,1.14492354]
[1760274719450,0.00078002,112110.0,112100.0,0.71992355]
[1760274719999,0.00078002,112110.0,112100.0,1.11992355]
[1760274723576,0.19705421,112110.0,112100.0,0.13541952]
[1760274723779,0.17917623,112110.0,112100.0,0.13541952]
[1760274724653,0.17917623,112110.0,112100.0,0.34894165]
[1760274725385,0.17917623,112110.0,112100.0,0.34694165]
[1760274725761,0.17917623,112110.0,112100.0,0.34794165]
[1760274725969,0.17917623,112110.0,112100.0,0.31283165]
[1760274726272,0.17917623,112110.0,112100.0,0.31183165]
[1760274726476,0.17917623,112110.0,112100.0,0.34694165]
[1760274726833,0.00078002,112110.0,112100.0,0.64579355]
[1760274727276,0.00078002,112110.0,112100.0,0.37709355]
[1760274727733,0.0002,112120.0,112110.0,0.20854811]
[1760274728092,0.00035037,112120.0,112110.0,0.35163763]
[1760274728265,0.00035037,112120.0,112110.0,0.37605763]
[1760274729320,0.00035037,112120.0,112110.0,0.37705763]
[1760274729738,0.00035037,112120.0,112110.0,0.37805763]
[1760274730297,0.00891662,112150.0,112140.0,0.17834849]
[1760274730516,0.20512827,112150.0,112140.0,0.22121849]
[1760274730750,0.18725029,112150.0,112140.0,0.25632849]
[1760274730992,0.18725029,112150.0,112140.0,0.29380849]
[1760274731611,0.18725029,112150.0,112140.0,0.08035]
[1760274731764,0.18725029,112150.0,112140.0,0.29380849]
[1760274731972,0.18725029,112150.0,112140.0,0.08035]
[1760274732168,0.18725029,112150.0,112140.0,0.25869849]
[1760274735783,0.18725029,112150.0,112140.0,0.08035]
[1760274736186,0.1895694,112150.0,112140.0,0.08035]
[1760274736668,0.1895694,112150.0,112140.0,0.03748]
[1760274738595,0.1895694,112150.0,112140.0,0.25869849]
[1760274738782,0.1895694,112150.0,112140.0,0.08035]
[1760274741973,0.1895694,112150.0,112140.0,0.25869849]
[1760274743203,0.1806517,112150.0,112140.0,0.25869849]
[1760274743432,0.1806517,112150.0,112140.0,0.29380849]
[1760274745450,0.1806517,112150.0,112140.0,0.25869849]
[1760274747805,0.1806517,112150.0,112140.0,0.08035]
[1760274748195,0.1806517,112150.0,112140.0,0.25869849]
[1760274749005,0.1806517,112150.0,112140.0,0.03748]
[1760274749625,0.1806517,112150.0,112140.0,0.23919849]
[1760274750081,0.1806517,112150.0,112140.0,0.06085]
[1760274750918,0.1806517,112150.0,112140.0,0.23919849]
[1760274751528,0.1806517,112150.0,112140.0,0.03748]
[1760274752990,0.1756517,112150.0,112140.0,0.03748]
[1760274753429,0.17833259,112150.0,112140.0,0.03748]
[1760274753694,0.17833259,112150.0,112140.0,0.29650849]
[1760274759651,0.17833259,112150.0,112140.0,0.25843849]
[1760274759819,0.17833259,112150.0,112140.0,0.29650849]
[1760274764431,0.17833259,112150.0,112140.0,0.08009]
[1760274765103,0.17833259,112150.0,112140.0,0.25843849]
[1760274765547,0.17833259,112150.0,112140.0,0.08009]
[1760274765750,0.17833259,112150.0,112140.0,0.03748]
[1760274766463,0.17833259,112150.0,112140.0,0.06331]
[1760274767397,0.17833259,112150.0,112140.0,0.24165849]
[1760274768159,0.17833259,112150.0,112140.0,0.06331]
[1760274770108,0.17833259,112150.0,112140.0,0.24165849]
[1760274770796,0.17833259,112150.0,112140.0,0.25962849]
[1760274773930,0.17833259,112150.0,112140.0,0.03748]
[1760274776584,0.17833259,112150.0,112140.0,0.08128]
[1760274779749,0.17833259,112150.0,112140.0,0.05545]
[1760274780188,0.17833259,112150.0,112140.0,0.03748]
[1760274786883,0.17833259,112150.0,112140.0,0.30618]
[1760274790364,0.17633259,112150.0,112140.0,0.30618]
[1760274790685,0.17633259,112150.0,112140.0,0.3498]
[1760274791969,0.17633259,112150.0,112140.0,0.38601]
[1760274792883,0.17633259,112150.0,112140.0,0.3498]
[1760274793438,0.17633259,112150.0,112140.0,0.38601]
[1760274794170,0.17833259,112150.0,112140.0,0.65388801]
[1760274795376,0.17833259,112150.0,112140.0,0.38518801]
[1760274795714,0.17833259,112150.0,112140.0,0.20683952]
[1760274795914,0.17833259,112150.0,112140.0,0.38518801]
[1760274796503,0.17833259,112150.0,112140.0,0.17062952]
[1760274796717,0.17833259,112150.0,112140.0,0.34897801]
[1760274797296,0.17833259,112150.0,112140.0,0.38518801]
[1760274798366,0.17833259,112150.0,112140.0,0.20683952]
[1760274799964,0.17833259,112150.0,112140.0,0.17062952]
[1760274801269,0.17833259,112150.0,112140.0,0.20683952]
[1760274801643,0.17833259,112150.0,112140.0,0.03748]
[1760274801644,0.51833259,112150.0,112140.0,0.03748]
[1760274802010,0.54515361,112150.0,112140.0,0.03748]
[1760274802138,0.54515361,112150.0,112140.0,0.11731]
[1760274802350,0.51833259,112150.0,112140.0,0.11731]
[1760274802955,0.17833259,112150.0,112140.0,0.11731]
[1760274803806,0.16397291,112160.0,112140.0,0.38518801]
[1760274804032,0.50412325,112160.0,112150.0,0.0193]
[1760274804232,0.50412325,112160.0,112150.0,0.04362]
[1760274804812,0.50412325,112160.0,112150.0,0.0811]
[1760274806980,0.50412325,112160.0,112150.0,0.03748]
[1760274809715,0.50470288,112160.0,112150.0,0.03748]
[1760274812971,0.50470288,112160.0,112150.0,0.24045259]
[1760274813166,0.50470288,112160.0,112150.0,0.06212]
[1760274813638,0.00057963,112160.0,112150.0,0.06212]
[1760274813837,0.19678879,112160.0,112150.0,0.06212]
[1760274814041,0.18782664,112160.0,112150.0,0.06212]
[1760274814666,0.18782664,112160.0,112150.0,0.03748]
[1760274829699,0.52782664,112160.0,112150.0,0.03748]
[1760274829913,0.54707727,112160.0,112150.0,0.03748]
[1760274830056,0.57389755,112160.0,112150.0,0.03748]
[1760274833662,0.57339379,112160.0,112150.0,0.03748]
[1760274838444,0.51833259,112150.0,112140.0,0.00095491]
[1760274838665,0.51836439,112130.0,112120.0,0.03748]
[1760274839297,0.54518937,112130.0,112120.0,0.03748]
[1760274840142,0.54518937,112130.0,112120.0,0.03848]
[1760274840996,0.20518937,112130.0,112120.0,0.2955803]
[1760274841202,0.17836439,112130.0,112120.0,0.2955803]
[1760274841618,0.17836439,112130.0,112120.0,0.08196]
[1760274841847,0.17836439,112130.0,112120.0,0.2603403]
[1760274842065,0.17836439,112130.0,112120.0,0.2965803]
[1760274844038,0.17836439,112130.0,112120.0,0.1182]
[1760274844240,0.17836439,112130.0,112120.0,0.1198636]
[1760274844913,0.17836439,112130.0,112120.0,0.2982439]
[1760274845242,0.17836291,112140.0,112120.0,0.2982439]
[1760274845390,0.01787798,112130.0,112120.0,0.2965803]
[1760274846998,0.01787798,112130.0,112120.0,0.2955803]
[1760274847238,0.17878564,112150.0,112130.0,0.19287914]
[1760274847463,0.17878368,112150.0,112140.0,0.07872]
[1760274847683,0.17834849,112140.0,112130.0,0.10766952]
[1760274847897,0.17834849,112140.0,112130.0,0.13200952]
[1760274848714,0.17834849,112140.0,112130.0,0.31037391]
[1760274849055,0.17834849,112140.0,112130.0,0.13200952]
[1760274849315,0.17834849,112140.0,112130.0,0.31037391]
[1760274850693,0.17834849,112140.0,112130.0,0.31145756]
[1760274850909,0.17834849,112140.0,112130.0,0.13309317]
[1760274851571,0.17834849,112140.0,112130.0,0.31145756]
[1760274851769,0.17834849,112140.0,112130.0,0.13309317]
[1760274852295,0.17834849,112140.0,112130.0,0.00108365]
[1760274855416,0.17834849,112140.0,112130.0,0.02542365]
[1760274855622,0.17834849,112140.0,112130.0,0.07980365]
[1760274856776,0.17834849,112140.0,112130.0,0.04356365]
[1760274861687,0.17834849,112140.0,112130.0,0.00108365]
[1760274866439,0.55674379,112140.0,112130.0,0.00108365]
[1760274866621,0.51834849,112140.0,112130.0,0.00108365]
[1760274866826,0.54517119,112140.0,112130.0,0.00108365]
[1760274868392,0.56439113,112140.0,112130.0,0.00108365]
[1760274868552,0.5783755,112140.0,112130.0,0.00108365]
[1760274869573,0.65100104,112140.0,112130.0,0.00108365]
[1760274869790,0.63701667,112140.0,112130.0,0.00108365]
[1760274870200,0.56439113,112140.0,112130.0,0.00108365]
[1760274870779,0.17836439,112130.0,112120.0,0.03748]
[1760274871885,0.04704264,112140.0,112120.0,0.29191913]
[1760274872046,0.001,112140.0,112130.0,0.32152391]
[1760274872251,0.001,112140.0,112130.0,0.34395391]
[1760274872920,0.01787798,112140.0,112130.0,0.34394824]
[1760274876639,0.01883296,112140.0,112130.0,0.34394824]
[1760274877997,0.18723897,112160.0,112130.0,0.34394824]
[1760274878283,0.1783326,112150.0,112130.0,0.34394824]
[1760274878484,0.1783326,112150.0,112130.0,0.30793824]
[1760274879253,0.17834849,112140.0,112130.0,0.17836439]
[1760274880623,0.17834849,112140.0,112130.0,0.20079439]
[1760274880917,0.17834849,112140.0,112130.0,0.21841439]
[1760274881527,0.1783326,112150.0,112130.0,0.21841439]
[1760274881689,0.1783326,112150.0,112130.0,0.25442439]
[1760274883369,0.17834849,112140.0,112130.0,0.25442439]
[1760274886785,0.17834849,112140.0,112130.0,0.21841439]
[1760274887796,0.17834849,112140.0,112130.0,0.17836439]
[1760274888594,0.17834849,112140.0,112130.0,0.20319439]
[1760274888790,0.17834849,112140.0,112130.0,0.17836439]
[1760274889300,0.17834849,112140.0,112130.0,0.20319439]
[1760274889742,0.17834849,112140.0,112130.0,0.22034439]
[1760274891341,0.17834849,112140.0,112130.0,0.25442439]
[1760274894009,0.17834849,112140.0,112130.0,0.22034439]
[1760274894216,0.17834849,112140.0,112130.0,0.04198]
[1760274894391,0.17834849,112140.0,112130.0,0.22034439]
[1760274896196,0.17834849,112140.0,112130.0,0.25442439]
[1760274897799,0.17834849,112140.0,112130.0,0.22034439]
[1760274899990,0.17834849,112140.0,112130.0,0.04198]
[1760274900824,0.17836439,112130.0,112120.0,0.0380599]
[1760274900986,0.17836439,112130.0,112120.0,0.2164402]
[1760274901154,0.17836439,112130.0,112120.0,0.0380599]
[1760274901344,0.17836439,112130.0,112120.0,0.0604699]
[1760274901561,0.17836439,112130.0,112120.0,0.0380599]
[1760274902835,0.17836439,112130.0,112120.0,0.0604699]
[1760274903871,0.17836439,112130.0,112120.0,0.1144199]
[1760274904083,0.17836439,112130.0,112120.0,0.0788599]
[1760274905599,0.17836439,112130.0,112120.0,0.0380599]
[1760274909300,0.17836439,112130.0,112120.0,0.2572402]
[1760274909479,0.17836439,112130.0,112120.0,0.1144199]
[1760274909995,0.17836439,112130.0,112120.0,0.2928002]
[1760274911938,0.17836439,112130.0,112120.0,0.2572402]
[1760274912498,0.17836439,112130.0,112120.0,0.2928002]
[1760274913660,0.20647179,112150.0,112130.0,0.17836439]
[1760274913789,0.52724922,112150.0,112140.0,0.07636]
[1760274914245,0.52724922,112150.0,112140.0,0.0408]
[1760274914449,0.18723897,112160.0,112140.0,0.26362591]
[1760274914450,0.17832951,112160.0,112140.0,0.26362591]
[1760274914651,0.17833259,112150.0,112140.0,0.26362591]
[1760274914816,0.17833259,112150.0,112140.0,0.08527742]
[1760274915414,0.17833259,112150.0,112140.0,0.07636]
[1760274916253,0.17833259,112150.0,112140.0,0.0408]
[1760274917725,0.17833259,112150.0,112140.0,0.07636]
[1760274918092,0.17833259,112150.0,112140.0,0.0408]
[1760274918743,0.17833259,112150.0,112140.0,0.25470849]
[1760274919595,0.1789123,112150.0,112140.0,0.25470849]
[1760274920013,0.1789123,112150.0,112140.0,0.07636]
[1760274920425,0.4540263,112160.0,112140.0,0.07636]
[1760274920598,0.17833259,112150.0,112140.0,0.25470849]
[1760274921614,0.17831669,112160.0,112150.0,0.17833259]
[1760274921852,0.17831669,112160.0,112150.0,0.07636]
[1760274921987,0.17833259,112150.0,112140.0,0.14347952]
[1760274922185,0.17833259,112150.0,112140.0,0.34423801]
[1760274923319,0.17833259,112150.0,112140.0,0.13032952]
[1760274923506,0.17833259,112150.0,112140.0,0.34423801]
[1760274927250,0.17833259,112150.0,112140.0,0.34519293]
[1760274928434,0.17833259,112150.0,112140.0,0.38267293]
[1760274929452,0.17833259,112150.0,112140.0,0.65137293]
[1760274932398,0.17833259,112150.0,112140.0,0.47302444]
[1760274932771,0.17833259,112150.0,112140.0,0.65137293]
[1760274933139,0.17833259,112150.0,112140.0,0.47302444]
[1760274933331,0.17833259,112150.0,112140.0,0.65137293]
[1760274933787,0.17833259,112150.0,112140.0,0.03843492]
[1760274934372,0.17833259,112150.0,112140.0,0.06148492]
[1760274934559,0.17833259,112150.0,112140.0,0.07978492]
[1760274935076,0.17788898,112150.0,112140.0,0.07978492]
[1760274935481,0.17788898,112150.0,112140.0,0.03843492]
[1760274937606,0.17788898,112150.0,112140.0,0.07978492]
[1760274941028,0.17788898,112150.0,112140.0,0.03843492]
[1760274943866,0.17788898,112150.0,112140.0,0.06148492]
[1760274944881,0.17788898,112150.0,112140.0,0.23983341]
[1760274945052,0.17788898,112150.0,112140.0,0.25805341]
[1760274945764,0.17788898,112150.0,112140.0,0.29463341]
[1760274946698,0.17788898,112150.0,112140.0,0.25805341]
[1760274947527,0.17788898,112150.0,112140.0,0.03843492]
[1760274947731,0.17833259,112150.0,112140.0,0.03843492]
[1760274948697,0.17833259,112150.0,112140.0,0.24077341]
[1760274949108,0.17833259,112150.0,112140.0,0.25899341]
[1760274950846,0.17833259,112150.0,112140.0,0.29557341]
[1760274952157,0.17833259,112150.0,112140.0,0.25899341]
[1760274954725,0.17833259,112150.0,112140.0,0.03843492]
[1760274955818,0.17833259,112150.0,112140.0,0.21678341]
[1760274955971,0.17833259,112150.0,112140.0,0.03843492]
[1760274956605,0.17833259,112150.0,112140.0,0.21678341]
[1760274957503,0.17833259,112150.0,112140.0,0.03843492]
[1760274957925,0.17833259,112150.0,112140.0,0.21678341]
[1760274958827,0.17833259,112150.0,112140.0,0.03843492]
[1760274960126,0.17833259,112150.0,112140.0,0.21678341]
[1760274960260,0.17833259,112150.0,112140.0,0.03843492]
[1760274960470,0.17833259,112150.0,112140.0,0.06122492]
[1760274960670,0.17833259,112150.0,112140.0,0.23957341]
[1760274960871,0.17833259,112150.0,112140.0,0.03843492]
[1760274961400,0.55220199,112150.0,112140.0,0.03843492]
[1760274961557,0.53759397,112150.0,112140.0,0.03843492]
[1760274961758,0.53759397,112150.0,112140.0,0.06122492]
[1760274962203,0.51833259,112150.0,112140.0,0.03843492]
[1760274965082,0.56440725,112150.0,112140.0,0.03843492]
[1760274965319,0.56440367,112150.0,112140.0,0.03843492]
[1760274966343,0.66943643,112150.0,112140.0,0.03843492]
[1760274966549,0.59455557,112150.0,112140.0,0.03843492]
[1760274969385,0.60853854,112150.0,112140.0,0.03843492]
[1760274973002,0.60853854,112150.0,112140.0,1e-08]
[1760274973211,0.73353909,112150.0,112140.0,1e-08]
[1760274973668,0.71955612,112150.0,112140.0,1e-08]
[1760274973906,0.83231894,112150.0,112140.0,1e-08]
[1760274974327,0.83331894,112150.0,112140.0,1e-08]
[1760274975271,0.86331521,112150.0,112140.0,1e-08]
[1760274975512,0.8773004,112150.0,112140.0,1e-08]
[1760274976686,0.90230039,112150.0,112140.0,1e-08]
[1760274979837,0.5485322,112120.0,112110.0,0.07162362]
[1760274980234,0.17841213,112100.0,112090.0,0.10914362]
[1760274980694,0.17841213,112100.0,112090.0,0.03752]
[1760274981119,0.20529222,112100.0,112090.0,0.03752]
[1760274981876,0.20529222,112100.0,112090.0,0.03852]
[1760274982419,0.20529222,112100.0,112090.0,0.03752]
[1760274982763,0.20529222,112100.0,112090.0,0.03852]
[1760274983398,0.20529222,112100.0,112090.0,0.03752]
[1760274984695,0.20529222,112100.0,112090.0,0.06031]
[1760274985758,0.20529222,112100.0,112090.0,0.03752]
[1760274986190,0.20529222,112100.0,112090.0,0.04042014]
[1760274996709,0.22496809,112100.0,112090.0,0.04042014]
[1760274999009,0.20529222,112100.0,112090.0,0.04042014]
[1760275021785,0.23544412,112100.0,112090.0,0.04042014]
[1760275022608,0.60594492,112100.0,112090.0,0.04042014]
[1760275022798,0.64904712,112100.0,112090.0,0.04042014]
[1760275024270,0.62510852,112100.0,112090.0,0.04042014]
[1760275024405,0.64904712,112100.0,112090.0,0.04042014]
[1760275024789,0.62510852,112100.0,112090.0,0.04042014]
[1760275024988,0.71105126,112100.0,112090.0,0.04042014]
[1760275025425,0.71105126,112100.0,112090.0,0.00290014]
[1760275026414,0.72504085,112100.0,112090.0,0.00290014]
[1760275028895,0.38912962,112100.0,112090.0,0.00290014]
[1760275029097,0.54837815,112100.0,112090.0,0.00290014]
[1760275029288,0.59437966,112100.0,112090.0,0.00290014]
[1760275030658,0.59437966,112100.0,112090.0,1e-08]
[1760275031017,0.64120767,112100.0,112090.0,1e-08]
[1760275031271,0.7132509,112100.0,112090.0,1e-08]
[1760275031610,0.62453156,112100.0,112090.0,1e-08]
[1760275031935,0.62553156,112100.0,112090.0,1e-08]
[1760275032561,0.59503076,112100.0,112090.0,1e-08]
[1760275036776,0.62616522,112100.0,112090.0,1e-08]
[1760275037332,0.65116341,112100.0,112090.0,1e-08]
[1760275037537,0.73988275,112100.0,112090.0,1e-08]
[1760275038685,0.88882133,112100.0,112090.0,1e-08]
[1760275038884,0.87483174,112100.0,112090.0,1e-08]
[1760275039031,0.90680148,112100.0,112090.0,1e-08]
[1760275039658,0.88286288,112100.0,112090.0,1e-08]
[1760275040185,5.88286288,112100.0,112090.0,1e-08]
[1760275040385,5.93081749,112100.0,112090.0,1e-08]
[1760275040535,5.89884775,112100.0,112090.0,1e-08]
[1760275040745,5.85089314,112100.0,112090.0,1e-08]
[1760275041791,5.86488629,112100.0,112090.0,1e-08]
[1760275042820,5.93349248,112100.0,112090.0,1e-08]
[1760275043020,0.54861179,112070.0,112060.0,0.03752]
[1760275043224,0.60840953,112070.0,112060.0,0.03752]
[1760275043711,0.63525539,112070.0,112060.0,0.03752]
[1760275045743,0.63725539,112070.0,112060.0,0.03752]
[1760275046770,0.61328671,112070.0,112060.0,0.03752]
[1760275048286,0.63725539,112070.0,112060.0,0.03752]
[1760275048706,0.63725539,112070.0,112060.0,0.03926095]
[1760275050569,0.64646461,112070.0,112060.0,0.03926095]
[1760275050730,0.62249593,112070.0,112060.0,0.03926095]
[1760275050911,0.64646461,112070.0,112060.0,0.03926095]
[1760275052671,0.61549593,112070.0,112060.0,0.03926095]
[1760275054321,0.61549593,112070.0,112060.0,0.00174095]
[1760275059407,0.61039593,112070.0,112060.0,0.00174095]
[1760275060566,0.63436461,112070.0,112060.0,0.00174095]
[1760275060697,0.63436461,112070.0,112060.0,1e-08]
[1760275061260,0.77853284,112070.0,112060.0,1e-08]
[1760275061545,0.79861964,112070.0,112060.0,1e-08]
[1760275061680,0.88733898,112070.0,112060.0,1e-08]
[1760275061889,0.83940162,112070.0,112060.0,1e-08]
[1760275062547,0.88733898,112070.0,112060.0,1e-08]
[1760275064245,0.85537859,112070.0,112060.0,1e-08]
[1760275066222,0.7553786,112070.0,112060.0,1e-08]
[1760275066351,0.85537859,112070.0,112060.0,1e-08]
[1760275066546,0.7553786,112070.0,112060.0,1e-08]
[1760275066756,0.85537859,112070.0,112060.0,1e-08]
[1760275067005,0.7553786,112070.0,112060.0,1e-08]
[1760275067197,0.85537859,112070.0,112060.0,1e-08]
[1760275067625,0.85540146,112070.0,112060.0,1e-08]
[1760275069990,0.76668212,112070.0,112060.0,1e-08]
[1760275070710,0.66668213,112070.0,112060.0,1e-08]
[1760275071081,0.76668212,112070.0,112060.0,1e-08]
[1760275073551,0.66668213,112070.0,112060.0,1e-08]
[1760275073750,0.76668212,112070.0,112060.0,1e-08]
[1760275073991,0.85540146,112070.0,112060.0,1e-08]
[1760275074481,0.86939629,112070.0,112060.0,1e-08]
[1760275074866,0.7693963,112070.0,112060.0,1e-08]
[1760275075000,0.86939629,112070.0,112060.0,1e-08]
[1760275076041,0.85540146,112070.0,112060.0,1e-08]
[1760275076698,0.86031465,112070.0,112060.0,1e-08]
[1760275078008,5.86031465,112070.0,112060.0,1e-08]
[1760275078337,5.86032366,112070.0,112060.0,1e-08]
[1760275079617,5.8324731,112070.0,112060.0,1e-08]
[1760275084409,5.84646964,112070.0,112060.0,1e-08]
[1760275086814,5.7577503,112070.0,112060.0,1e-08]
[1760275088842,0.75068196,112070.0,112060.0,1e-08]
[1760275091568,0.78083386,112070.0,112060.0,1e-08]
[1760275091757,0.8129069,112070.0,112060.0,1e-08]
[1760275094379,0.8129184,112070.0,112060.0,1e-08]
[1760275094599,0.90163774,112070.0,112060.0,1e-08]
[1760275100073,0.90164039,112070.0,112060.0,1e-08]
[1760275100967,0.81292105,112070.0,112060.0,1e-08]
[1760275102814,0.8129515,112070.0,112060.0,1e-08]
[1760275104329,0.60193438,112070.0,112060.0,1e-08]
[1760275104528,0.78039427,112070.0,112060.0,1e-08]
[1760275106167,0.75632711,112070.0,112060.0,1e-08]
[1760275107214,0.897897,112070.0,112060.0,1e-08]
[1760275107413,0.88390046,112070.0,112060.0,1e-08]
[1760275107610,0.8560499,112070.0,112060.0,1e-08]
[1760275108156,0.88390046,112070.0,112060.0,1e-08]
[1760275108382,0.51850767,112040.0,112030.0,1e-08]
[1760275108585,0.54869144,112020.0,112010.0,1e-08]
[1760275108799,0.5845677,112020.0,112010.0,1e-08]
[1760275109258,0.61142534,112020.0,112010.0,0.00290326]
[1760275109675,0.61142534,112020.0,112010.0,0.00340489]
[1760275110635,0.61242534,112020.0,112010.0,0.00340489]
[1760275111027,0.61342534,112020.0,112010.0,0.00340489]
[1760275112503,0.6317689,112020.0,112010.0,0.00340489]
[1760275114805,0.61342534,112020.0,112010.0,0.00340489]
[1760275115227,0.59671268,112020.0,112010.0,0.00340489]
[1760275116450,0.61337444,112020.0,112010.0,0.00340489]
[1760275121978,0.61337444,112020.0,112010.0,1e-08]
[1760275122136,0.74576227,112020.0,112010.0,1e-08]
[1760275122338,0.83448161,112020.0,112010.0,1e-08]
[1760275122766,0.73448162,112020.0,112010.0,1e-08]
[1760275122976,0.83448161,112020.0,112010.0,1e-08]
[1760275123193,0.74576227,112020.0,112010.0,1e-08]
[1760275123549,0.74575966,112020.0,112010.0,1e-08]
[1760275123750,0.63742157,112020.0,112010.0,1e-08]
[1760275123951,0.61335876,112020.0,112010.0,1e-08]
[1760275126195,0.62168159,112020.0,112010.0,1e-08]
[1760275126395,0.71040093,112020.0,112010.0,1e-08]
[1760275126835,0.7020781,112020.0,112010.0,1e-08]
[1760275127214,0.71040162,112020.0,112010.0,1e-08]
[1760275127552,0.71040162,112020.0,112010.0,0.00500001]
[1760275129021,0.62168228,112020.0,112010.0,0.00500001]
[1760275129249,0.64546709,112020.0,112010.0,0.00500001]
[1760275129645,0.58292886,112020.0,112010.0,0.02826001]
[1760275130022,0.58292886,112020.0,112010.0,0.00500001]
[1760275130222,0.22628278,112020.0,112010.0,0.00500001]
[1760275130446,0.20711918,112020.0,112010.0,0.00500001]
[1760275131404,0.20711918,112020.0,112010.0,0.07629001]